bitfinex/quotes_ETHUSD_20241106
["timestamp","ask_amount","ask_price","bid_price","bid_amount"]
[1730853139146,0.75284969,2468.7,2467.9,4.05194]
[1730853139426,4.05074,2468.7,2467.7,4.05223]
[1730853139628,4.05074,2468.7,2467.8,35.0]
[1730853139629,4.05114,2468.5,2467.8,35.0]
[1730853139839,4.05114,2468.5,2467.8,39.05215]
[1730853139986,4.0512,2468.4,2467.5,4.05257]
[1730853140190,4.0512,2468.4,2467.7,4.05233]
[1730853140387,4.0512,2468.4,2467.8,35.0]
[1730853140629,0.810188,2468.5,2467.8,39.05206]
[1730853140827,9.05063,2468.8,2468.0,4.05171]
[1730853141042,4.05029,2469.0,2468.1,4.05155]
[1730853141203,4.04848,2470.1,2468.6,4.05074]
[1730853141204,9.04965,2469.4,2468.6,4.05074]
[1730853141403,4.04974,2469.3,2468.6,4.05074]
[1730853141604,4.04992,2469.2,2468.4,4.05109]
[1730853141838,0.7544,2469.0,2468.4,4.05109]
[1730853142207,0.7544,2469.0,2468.5,4.05095]
[1730853142448,0.7544,2469.0,2468.3,4.05127]
[1730853142616,0.7544,2469.0,2468.3,4.05136]
[1730853142936,4.05055,2468.8,2468.1,4.05167]
[1730853143145,4.05055,2468.8,2467.9,4.05193]
[1730853143146,0.7544,2468.6,2467.9,4.05193]
[1730853143292,0.7544,2468.6,2467.9,8.10383]
[1730853143492,0.7544,2468.6,2467.9,4.0519]
[1730853143493,4.80529,2468.6,2467.9,4.0519]
[1730853143692,0.7544,2468.6,2467.9,43.10382]
[1730853143910,0.7544,2468.6,2468.0,4.05183]
[1730853144547,1.7754185,2468.6,2467.9,39.0519]
[1730853144726,1.7754185,2468.6,2467.5,4.05257]
[1730853144727,4.05148,2468.3,2467.5,4.05257]
[1730853144936,0.7544,2468.1,2467.3,4.05293]
[1730853145145,0.7544,2467.7,2466.9,4.05357]
[1730853145298,4.80722,2467.5,2466.7,4.05385]
[1730853145497,0.7544,2467.5,2466.8,4.05379]
[1730853145700,0.7544,2467.4,2466.7,4.05385]
[1730853146007,0.981703,2467.5,2466.2,0.0008]
[1730853146008,0.7544,2466.8,2466.2,0.0008]
[1730853146252,0.7544,2466.5,2466.2,0.0008]
[1730853146458,4.80878,2466.5,2466.2,0.0008]
[1730853146674,0.7544,2466.5,2466.2,0.0008]
[1730853148215,0.7544,2466.5,2466.2,4.05552]
[1730853148706,0.8077,2467.2,2466.7,4.05396]
[1730853149209,0.8077,2467.6,2466.8,35.08107588]
[1730853149358,5.0,2467.4,2466.8,35.0]
[1730853149562,4.86033,2467.6,2466.8,35.0]
[1730853149799,4.86033,2467.6,2466.9,4.05355]
[1730853149800,0.8077,2467.6,2466.9,4.05355]
[1730853150108,0.8077,2467.6,2467.4,4.05284]
[1730853150283,0.8077,2467.6,2467.0,4.05347]
[1730853150691,5.8077,2467.6,2466.9,4.05366]
[1730853150859,0.8077,2467.6,2467.0,4.05338]
[1730853151064,0.8077,2467.6,2466.9,2.12243678]
[1730853151259,0.8077,2467.6,2466.9,6.17607678]
[1730853151514,0.8077,2467.6,2466.9,2.12243678]
[1730853151675,0.8077,2467.6,2467.0,4.05338]
[1730853151865,0.8077,2467.6,2467.1,4.05333]
[1730853152315,0.8077,2467.6,2467.0,1.01747275]
[1730853152462,0.8077,2468.1,2467.4,4.05282]
[1730853152664,0.8077,2468.1,2467.2,4.05311]
[1730853152977,0.8077,2468.1,2467.5,4.05254]
[1730853153159,0.8077,2468.1,2467.5,8.915646]
[1730853153359,0.8077,2468.1,2467.5,4.863086]
[1730853153587,4.85952,2468.1,2467.1,4.05325]
[1730853153812,4.05199,2468.0,2467.1,4.05318]
[1730853153981,0.8077,2467.7,2466.9,6.17604678]
[1730853154505,4.86008,2467.7,2466.9,4.05361]
[1730853154823,0.8077,2467.7,2466.9,4.05366]
[1730853154973,0.8077,2467.7,2467.4,4.05273]
[1730853155169,0.8077,2467.7,2467.1,4.05322]
[1730853155484,0.8077,2467.7,2467.1,4.05321]
[1730853155688,0.8077,2467.7,2467.1,0.810688]
[1730853155891,0.8077,2467.7,2467.3,4.05301]
[1730853156514,0.8077,2467.7,2467.4,8.10541]
[1730853156681,0.8077,2467.7,2467.4,4.05269]
[1730853157512,0.8077,2467.7,2467.0,4.05341]
[1730853157714,0.8077,2467.7,2467.0,8.1068]
[1730853157934,0.8077,2467.7,2467.1,4.05329]
[1730853158090,0.8077,2467.7,2467.0,4.05339]
[1730853158290,0.8077,2467.7,2467.1,4.05327]
[1730853158529,4.86005,2467.7,2466.8,39.05371]
[1730853158748,5.0,2467.6,2466.8,35.0]
[1730853158902,0.8077,2467.7,2467.2,4.05305]
[1730853159230,4.05263,2467.6,2466.8,43.25681348]
[1730853159438,0.8077,2467.5,2466.6,4.05405]
[1730853159642,0.8077,2467.0,2466.2,4.05551]
[1730853159934,4.86235,2466.3,2466.2,0.0008]
[1730853160089,6.254024,2466.3,2466.2,0.0008]
[1730853160295,6.264024,2466.3,2466.2,0.0008]
[1730853160690,6.264024,2466.3,2464.7,4.05723]
[1730853160691,5.0,2465.7,2464.7,4.05723]
[1730853160916,5.0,2465.7,2464.4,4.05764]
[1730853160917,4.05631,2465.3,2464.4,4.05764]
[1730853161139,0.8077,2465.0,2464.1,4.05823]
[1730853161352,4.543384,2464.9,2463.5,0.0641075]
[1730853161661,5.0,2464.7,2463.5,0.0641075]
[1730853161959,4.05812,2464.2,2463.5,0.0641075]
[1730853162098,0.8077,2464.1,2463.5,0.0641075]
[1730853162299,0.8077,2464.1,2463.6,4.0591]
[1730853162501,0.8077,2464.1,2463.8,4.05873]
[1730853162728,0.8077,2464.1,2463.6,4.0591]
[1730853162939,9.87515,2464.6,2463.7,4.05893]
[1730853163158,9.87515,2464.6,2463.6,0.41232075]
[1730853163159,9.87515,2464.6,2463.6,4.05908]
[1730853163299,5.0,2464.3,2463.5,0.0641075]
[1730853163499,0.8077,2464.2,2463.5,0.0641075]
[1730853163743,0.8077,2464.2,2463.5,4.1233475]
[1730853163949,0.8077,2464.2,2463.5,0.0641075]
[1730853163950,5.8077,2464.2,2463.5,0.0641075]
[1730853164239,5.0,2463.9,2463.5,0.0641075]
[1730853164450,5.986568,2464.1,2463.5,0.0641075]
[1730853164615,0.986568,2464.1,2463.5,0.0641075]
[1730853165023,0.8177,2464.2,2463.5,0.0641075]
[1730853165523,5.0,2463.9,2463.5,0.0641075]
[1730853165730,5.7969,2463.6,2463.5,0.0641075]
[1730853165896,17.04253346,2463.6,2463.5,0.0641075]
[1730853166329,17.04253346,2463.6,2462.2,4.1253775]
[1730853166330,0.7603,2463.1,2462.4,4.06106]
[1730853166529,0.7603,2463.1,2462.2,0.0641075]
[1730853166709,5.0,2463.6,2462.2,0.0641075]
[1730853166899,5.0,2463.6,2462.9,4.0601]
[1730853166900,0.7603,2463.5,2462.9,4.0601]
[1730853167103,0.7603,2463.5,2463.0,39.05996]
[1730853167399,0.7603,2463.5,2463.1,4.05989]
[1730853167611,0.7603,2463.5,2463.1,3.905989]
[1730853167846,0.7969,2464.1,2463.4,4.0594]
[1730853168000,0.7969,2464.1,2463.2,0.08119134]
[1730853168203,0.7969,2464.1,2463.1,4.05979]
[1730853168404,0.7969,2464.1,2463.5,4.05923]
[1730853168642,0.7969,2464.1,2463.7,4.05877]
[1730853168874,0.7969,2464.1,2463.8,4.05876]
[1730853169088,0.7969,2464.1,2463.7,0.405877]
[1730853169936,0.7969,2464.5,2463.7,0.48705148]
[1730853170137,0.7469,2464.5,2464.2,4.0581]
[1730853170373,1.625744,2465.4,2464.9,4.05695]
[1730853170526,0.01,2465.8,2464.7,4.05727]
[1730853170725,5.0,2465.5,2463.7,0.405877]
[1730853170924,5.0,2465.5,2463.6,4.17653346]
[1730853170925,5.0,2465.2,2463.6,4.17653346]
[1730853171138,5.0,2465.2,2464.0,4.16653346]
[1730853171373,5.0,2465.2,2464.5,4.05759]
[1730853171582,5.0,2465.2,2464.3,4.05788]
[1730853171881,5.0,2465.2,2464.6,4.0573]
[1730853172050,5.5,2465.2,2464.5,4.0576]
[1730853172250,5.0,2465.2,2464.5,4.0576]
[1730853172475,5.0,2465.2,2464.0,4.16653346]
[1730853172774,5.0,2465.2,2464.4,4.05764]
[1730853173096,0.02,2465.7,2463.4,4.05941]
[1730853173097,5.0,2464.6,2463.4,4.05941]
[1730853173239,0.7969,2464.4,2463.6,4.06330529]
[1730853173436,9.05795,2464.3,2463.2,4.05965]
[1730853173637,4.05812,2464.2,2463.2,4.05965]
[1730853173854,4.05812,2464.2,2463.0,4.06008]
[1730853173855,5.0,2464.0,2463.0,4.06008]
[1730853174057,5.0,2464.0,2463.1,4.06424582]
[1730853174387,5.0,2464.0,2463.2,0.00434748]
[1730853174537,5.7969,2464.1,2463.1,4.05989]
[1730853174849,9.85517,2464.1,2463.1,4.05989]
[1730853175034,4.05844,2464.0,2463.1,4.05989]
[1730853175236,5.7969,2464.1,2463.0,0.0811936]
[1730853175470,5.7969,2464.1,2462.8,4.19899696]
[1730853175471,1.37659,2464.1,2463.5,4.05918]
[1730853175654,0.7969,2464.1,2463.7,4.05889]
[1730853175869,0.01,2464.7,2463.7,4.05889]
[1730853175870,0.7969,2464.9,2463.7,8.11786]
[1730853176055,0.7969,2465.3,2464.7,4.05713]
[1730853176256,0.7969,2465.3,2464.3,4.05781]
[1730853176496,5.0,2465.1,2464.3,4.05781]
[1730853177003,5.98532,2465.1,2464.3,4.05781]
[1730853177205,0.7969,2465.3,2464.4,4.14316858]
[1730853177406,0.7969,2465.3,2464.4,4.13882494]
[1730853177720,0.7969,2465.3,2464.4,4.05767]
[1730853178225,5.7969,2465.3,2464.4,4.05767]
[1730853178524,0.985317,2465.2,2464.6,4.05743]
[1730853178670,0.7969,2465.3,2464.6,4.05743]
[1730853179311,0.7969,2465.3,2464.2,4.05803]
[1730853179475,9.05681,2465.0,2464.1,0.00640908]
[1730853179890,4.84947,2464.9,2464.0,4.0583]
[1730853180202,4.84947,2464.9,2463.8,4.05872]
[1730853180203,4.05747,2464.6,2463.8,4.05872]
[1730853180404,4.05747,2464.6,2463.6,8.22556346]
[1730853180405,1.390628,2464.8,2464.1,4.05822]
[1730853180576,5.0,2464.6,2463.3,0.7726]
[1730853180777,4.85012,2464.5,2463.7,0.0008316]
[1730853181095,4.85012,2464.5,2463.6,4.05908]
[1730853181287,1.390763,2464.4,2463.7,4.05888]
[1730853181480,0.7925,2464.5,2463.9,4.05848]
[1730853181679,0.7925,2464.5,2463.7,0.7726]
[1730853181879,0.7925,2464.5,2464.3,4.0578]
[1730853183198,0.7925,2464.5,2464.1,4.05822]
[1730853183199,0.7925,2465.1,2464.1,4.05817]
[1730853183414,5.36811,2465.0,2464.1,4.05816]
[1730853183571,9.05723,2464.8,2463.9,4.05854]
[1730853183929,0.7925,2464.7,2464.0,4.05833]
[1730853184077,5.0,2464.6,2463.8,4.0587]
[1730853184281,0.984979,2464.5,2463.8,4.0587]
[1730853184489,5.042589,2464.5,2463.6,4.05903]
[1730853184722,0.984979,2464.5,2463.6,4.05903]
[1730853185017,0.984979,2464.5,2463.8,4.05874]
[1730853185428,0.984979,2464.5,2463.8,4.05865]
[1730853185745,0.984979,2464.5,2463.5,0.08117421]
[1730853185746,0.7925,2464.7,2464.4,4.05776]
[1730853186029,1.31132,2465.0,2464.6,4.05745]
[1730853186030,0.7925,2465.0,2464.6,4.05745]
[1730853186226,0.7925,2465.0,2464.4,4.05776]
[1730853187132,0.7925,2465.0,2464.4,4.05774]
[1730853187432,0.7925,2465.0,2464.2,4.05807]
[1730853187744,0.484915,2464.9,2464.5,4.05761]
[1730853188028,0.484915,2464.9,2463.8,4.8313]
[1730853188029,5.7925,2464.8,2463.8,4.05877]
[1730853188180,0.7925,2464.8,2463.8,4.05877]
[1730853188508,0.7925,2464.8,2464.3,4.05791]
[1730853188888,5.7925,2465.1,2464.5,4.0575]
[1730853189101,6.37175,2465.1,2464.7,4.05728]
[1730853189314,0.7925,2465.6,2464.6,0.08114732]
[1730853189521,0.7925,2465.6,2465.3,4.05615]
[1730853189835,0.7925,2465.6,2464.9,4.05683]
[1730853190040,0.7925,2465.3,2464.6,4.05737]
[1730853190329,0.7925,2465.3,2464.4,8.11536]
[1730853190531,4.05715,2464.8,2464.0,4.8309]
[1730853190681,0.7925,2464.7,2464.0,4.0583]
[1730853190886,0.7925,2464.7,2464.0,4.05837]
[1730853191082,4.05788,2464.4,2463.4,4.05929]
[1730853191415,4.05788,2464.4,2463.7,0.00107897]
[1730853191416,0.7925,2464.1,2463.7,0.00107897]
[1730853191618,1.277562,2464.1,2463.4,4.05929]
[1730853191815,1.277562,2464.1,2463.5,0.00538706]
[1730853192004,4.05855,2464.0,2463.2,4.0597]
[1730853192208,4.05855,2464.0,2463.3,4.0606418]
[1730853192447,4.05855,2464.0,2463.3,0.0010818]
[1730853192650,4.05878,2463.8,2463.0,4.06001]
[1730853192807,0.5336112,2463.9,2463.2,4.05973]
[1730853193003,4.0592,2463.6,2462.8,4.0927635]
[1730853193204,0.7925,2463.7,2463.1,4.06527687]
[1730853193406,0.7925,2463.7,2462.8,0.0324635]
[1730853193407,4.05943,2463.4,2462.8,0.0324635]
[1730853193605,0.7925,2463.2,2462.9,0.00641058]
[1730853193847,0.7925,2463.2,2462.8,0.0324635]
[1730853194407,4.05997,2463.1,2462.8,0.0324635]
[1730853194607,4.85226,2463.2,2462.8,0.0324635]
[1730853194809,4.0602,2463.0,2462.8,0.0324635]
[1730853195014,0.90602,2462.9,2462.8,0.0324635]
[1730853195739,5.75877,2462.9,2462.8,0.0324635]
[1730853196473,8.75877,2462.9,2462.8,0.0324635]
[1730853196654,8.76877,2462.9,2462.8,0.0324635]
[1730853196863,4.06142,2462.2,2461.4,4.1314555]
[1730853197030,4.06176,2462.0,2461.4,0.0688055]
[1730853197230,5.406142,2462.1,2461.4,0.0688055]
[1730853197231,9.0621,2461.8,2461.4,0.0688055]
[1730853197426,4.0625,2461.6,2461.4,0.0688055]
[1730853197633,5.0,2461.8,2461.4,0.0688055]
[1730853197874,9.06218,2461.8,2461.4,0.0688055]
[1730853198170,0.985468,2461.7,2461.4,0.0688055]
[1730853198341,5.0,2461.8,2461.4,0.0688055]
[1730853198542,0.7925,2462.4,2461.4,0.0688055]
[1730853198750,0.7925,2462.4,2461.9,4.06176]
[1730853198957,5.7925,2462.4,2461.8,4.06204]
[1730853199279,5.7925,2462.4,2461.6,4.06234]
[1730853199484,5.0,2462.1,2461.4,0.0688055]
[1730853199628,4.06224,2461.7,2461.4,0.0688055]
[1730853199826,4.06256,2461.5,2461.4,0.0688055]
[1730853200277,0.7925,2461.6,2461.4,0.0688055]
[1730853200526,5.0,2461.5,2461.4,0.0688055]
[1730853200727,10.048051,2461.5,2461.4,0.0688055]
[1730853200966,13.048051,2461.5,2461.4,0.0688055]
[1730853201171,4.06359,2460.9,2460.1,8.20026829]
[1730853201389,4.06359,2460.9,2460.5,0.02769512]
[1730853201390,0.7925,2460.8,2460.5,0.02769512]
[1730853201688,0.7925,2460.8,2460.2,4.0147]
[1730853201829,0.7925,2460.8,2460.2,4.0647]
[1730853202030,1.778109,2460.8,2460.1,4.06476]
[1730853202232,1.778109,2460.8,2460.2,0.02460699]
[1730853202572,0.7925,2461.2,2460.2,0.02460699]
[1730853202729,0.7925,2461.2,2460.7,4.06387]
[1730853203145,0.7925,2461.2,2459.9,0.7826]
[1730853203146,0.7925,2461.2,2460.0,4.1337755]
[1730853203392,0.7925,2461.2,2460.5,4.06405]
[1730853203991,4.85558,2461.2,2460.0,0.0688055]
[1730853204145,9.0634,2461.0,2460.2,4.08926682]
[1730853204477,0.485558,2461.1,2460.5,4.06405]
[1730853204679,0.485558,2461.1,2460.3,4.06451]
[1730853204680,4.06338,2461.0,2460.3,4.06451]
[1730853204974,0.485558,2461.1,2460.4,4.06424]
[1730853205157,4.06341,2461.0,2460.4,4.06424]
[1730853205537,0.4548968,2460.9,2460.3,4.06448]
[1730853205734,4.06341,2461.0,2460.2,4.06469]
[1730853206046,4.06367,2460.9,2460.2,4.06469]
[1730853206260,4.06367,2460.9,2460.2,8.12927]
[1730853206490,9.06341,2461.0,2460.3,4.06454]
[1730853206662,4.06356,2460.9,2460.3,4.06454]
[1730853206868,9.06341,2461.0,2460.4,4.06437]
[1730853207069,4.06333,2461.1,2460.4,4.06437]
[1730853207308,4.85559,2461.2,2460.4,4.06437]
[1730853207604,4.85559,2461.2,2460.8,4.06363]
[1730853207605,0.7925,2461.2,2460.8,4.06363]
[1730853207828,0.7925,2461.2,2460.8,4.0636]
[1730853207965,0.7925,2461.2,2460.9,4.0634]
[1730853208169,0.7925,2461.2,2460.8,4.0636]
[1730853208366,0.7925,2461.5,2461.0,4.06327]
[1730853208567,0.7925,2461.5,2460.8,4.06369]
[1730853208796,1.37175,2461.5,2460.9,4.06341]
[1730853209112,1.37175,2461.5,2460.8,4.06369]
[1730853209480,1.37175,2461.5,2460.9,4.06351]
[1730853209681,1.37175,2461.5,2461.0,4.06338]
[1730853210007,0.7984,2461.8,2460.6,4.16653346]
[1730853210272,0.7984,2462.2,2461.1,0.7566]
[1730853210551,0.7984,2462.2,2461.9,4.06178]
[1730853210721,0.7984,2462.2,2461.7,4.06212]
[1730853211130,0.7984,2462.2,2461.1,0.7566]
[1730853211131,0.7984,2462.2,2461.5,4.06247]
[1730853211331,5.7984,2462.2,2461.5,4.06247]
[1730853211533,1.37824,2462.2,2461.6,4.06238]
[1730853211746,1.37824,2462.2,2461.6,4.06226]
[1730853211747,0.7984,2462.2,2461.6,4.06226]
[1730853211907,0.7984,2462.2,2461.4,4.06266]
[1730853212109,0.7984,2462.2,2461.7,4.06213]
[1730853212356,5.0,2462.5,2461.9,4.06177]
[1730853212357,5.7984,2462.5,2461.9,4.06177]
[1730853212661,5.7984,2463.2,2462.2,8.22793346]
[1730853212826,5.7984,2463.6,2463.0,4.05995]
[1730853213027,5.7984,2463.6,2462.8,4.06038]
[1730853213349,5.7984,2463.6,2462.3,0.7566]
[1730853213350,5.0,2463.3,2462.4,4.06102]
[1730853213550,5.0,2463.3,2462.3,0.7566]
[1730853213752,0.5,2463.2,2462.6,4.0606]
[1730853213992,4.05931,2463.5,2462.8,4.06038]
[1730853214112,3.0,2463.5,2462.8,4.06038]
[1730853214455,5.7984,2463.6,2463.1,4.05991]
[1730853214767,5.7984,2463.6,2462.3,9.00429346]
[1730853214768,0.7984,2463.6,2462.6,0.01]
[1730853215053,0.7984,2463.6,2463.2,4.05964]
[1730853215226,9.12,2464.0,2463.2,4.0596]
[1730853215227,0.7984,2463.9,2463.2,4.0596]
[1730853215409,5.0,2463.7,2463.2,4.05975]
[1730853215854,5.0,2463.7,2463.0,4.06005]
[1730853216052,5.0,2463.7,2463.0,8.12001]
[1730853216257,0.7984,2463.6,2462.8,4.0604]
[1730853216549,4.85761,2463.6,2462.8,4.0604]
[1730853216750,1.391667,2463.5,2463.1,4.05978]
[1730853217051,0.7984,2463.6,2463.1,4.05978]
[1730853217222,0.7984,2463.6,2463.2,4.05963]
[1730853217422,0.7984,2463.6,2463.1,4.05978]
[1730853217624,0.7984,2463.6,2462.6,4.81734]
[1730853217960,4.12,2464.0,2463.1,4.16653346]
[1730853217961,0.7984,2464.0,2463.1,4.16653346]
[1730853218270,0.7984,2464.6,2464.1,4.05823]
[1730853218409,0.7984,2464.6,2463.5,4.16653346]
[1730853218608,0.7984,2464.6,2464.0,4.05832]
[1730853219052,0.7984,2464.6,2463.8,4.05868]
[1730853219259,5.0,2464.5,2463.8,4.05868]
[1730853219424,5.0,2464.5,2463.6,4.05902]
[1730853219425,0.57984,2464.4,2463.6,4.05902]
[1730853219625,9.05873,2463.9,2463.0,4.06002]
[1730853219828,0.7984,2464.0,2463.5,4.05913]
[1730853220045,0.7984,2464.0,2463.4,4.0594]
[1730853220208,0.7984,2464.0,2463.6,8.1179]
[1730853220408,0.7984,2464.0,2463.6,4.05895]
[1730853221154,0.7984,2464.0,2463.7,4.05891]
[1730853221354,0.7984,2464.0,2463.8,4.05876]
[1730853222104,0.7984,2464.0,2463.5,4.05925]
[1730853222391,0.7984,2464.0,2463.2,4.05964]
[1730853222552,0.485679,2463.9,2463.3,4.05957]
[1730853222968,0.485679,2463.9,2463.3,4.05956]
[1730853223395,0.485679,2463.9,2463.0,0.7566]
[1730853223396,0.7984,2464.5,2463.8,4.05863]
[1730853223564,0.7984,2464.5,2464.0,4.05843]
[1730853223774,4.12,2464.8,2464.0,4.05843]
[1730853223775,0.7984,2464.8,2464.2,4.05806]
[1730853223969,0.7984,2464.8,2463.7,4.8154]
[1730853223970,0.7984,2464.8,2464.4,4.05766]
[1730853224301,4.85476,2465.3,2464.6,4.05734]
[1730853224618,0.985476,2465.2,2464.6,4.05734]
[1730853224764,0.985476,2465.2,2464.1,8.11654]
[1730853224968,0.985476,2465.2,2464.7,4.05714]
[1730853225420,0.985476,2465.2,2464.8,4.05711]
[1730853225715,0.985476,2465.2,2464.7,4.05714]
[1730853226217,0.8660055,2465.6,2465.1,4.05659]
[1730853226590,0.8660055,2465.6,2465.1,4.05652]
[1730853226826,0.8660055,2465.6,2465.1,4.05649]
[1730853227119,0.0688055,2465.6,2465.3,4.05625]
[1730853227324,0.0688055,2465.6,2465.4,4.05597]
[1730853227838,0.0688055,2465.6,2465.5,8.22250346]
[1730853228348,0.040355,2466.1,2466.0,4.05508]
[1730853228820,0.040355,2466.1,2465.8,4.05532]
[1730853229100,0.040355,2466.1,2466.0,4.05515]
[1730853230708,0.040355,2466.1,2466.0,4.96382536]
[1730853230908,0.040355,2466.1,2466.0,6.68992555]
[1730853231132,0.040355,2466.1,2466.0,9.60884988]
[1730853231349,4.05302,2467.3,2466.5,4.0542]
[1730853231549,4.9117955,2467.4,2466.6,4.13522485]
[1730853231742,4.05328,2467.2,2466.6,0.08107485]
[1730853231909,4.05328,2467.2,2466.5,4.0542]
[1730853231910,0.405328,2467.1,2466.5,4.0542]
[1730853232116,4.458688,2467.1,2466.5,4.0542]
[1730853232317,0.405328,2467.1,2466.5,4.0542]
[1730853232611,4.9117055,2467.4,2466.7,9.04799346]
[1730853232612,0.8588355,2467.4,2466.7,9.04799346]
[1730853232879,0.8588355,2467.4,2466.9,4.05367]
[1730853233053,0.8588355,2467.4,2467.0,0.0810613]
[1730853233054,0.0616355,2467.4,2467.0,0.0810613]
[1730853233223,0.0616355,2467.4,2467.0,4.1344313]
[1730853233569,0.0616355,2467.4,2466.9,4.05361]
[1730853233776,0.0616355,2467.4,2467.0,4.05347]
[1730853233953,0.0616355,2467.4,2466.9,4.05361]
[1730853233954,0.0616355,2467.4,2467.1,4.05327]
[1730853234280,0.0616355,2467.4,2467.3,4.05301]
[1730853234566,0.0616355,2467.4,2467.3,4.88061]
[1730853234767,0.0616355,2467.4,2467.3,6.19265135]
[1730853234923,0.0616355,2467.4,2467.3,4.88061]
[1730853235329,0.0616355,2467.4,2467.1,4.05318]
[1730853235719,0.0616355,2467.4,2467.1,4.05331]
[1730853235937,0.0616355,2467.4,2467.0,0.8276]
[1730853236119,0.0616355,2467.4,2466.7,4.16653346]
[1730853236324,4.05328,2467.2,2466.8,0.02007717]
[1730853236520,0.405328,2467.1,2466.3,4.16653346]
[1730853236757,0.7972,2467.0,2466.4,0.00273175]
[1730853236939,0.405328,2467.1,2466.4,0.00273175]
[1730853237236,0.405328,2467.1,2466.3,8.22107346]
[1730853237237,4.1145955,2467.4,2466.5,4.05416]
[1730853237445,4.05316,2467.3,2466.6,0.00656551]
[1730853237652,4.05323,2467.2,2466.6,0.02049788]
[1730853237978,4.1145955,2467.4,2466.6,4.05411]
[1730853237979,4.05306,2467.3,2466.6,4.05411]
[1730853238175,0.81676555,2467.2,2466.2,4.8824]
[1730853238479,4.83401,2467.0,2466.4,0.01385846]
[1730853238619,4.83401,2467.0,2466.2,4.8824]
[1730853238823,0.7804,2467.0,2466.3,0.01001996]
[1730853239026,0.8420355,2467.4,2466.7,4.16653346]
[1730853239225,0.0616355,2467.4,2467.0,0.8254]
[1730853239476,0.0616355,2467.4,2466.9,4.05353]
[1730853240075,0.0616355,2467.4,2467.0,4.05349]
[1730853240228,0.0616355,2467.4,2466.8,0.8254]
[1730853240430,0.0616355,2467.4,2466.5,4.05425]
[1730853240786,4.05336,2467.1,2466.4,0.8254]
[1730853241078,0.405336,2467.0,2466.1,0.8254]
[1730853241281,0.405336,2467.0,2465.8,4.0554]
[1730853241282,0.0616355,2467.4,2467.1,4.0533]
[1730853241440,0.0616355,2467.4,2467.2,0.08105155]
[1730853241621,0.0616355,2467.4,2467.3,4.05301]
[1730853241826,0.0616355,2467.4,2467.3,4.06301]
[1730853242067,0.0616355,2468.6,2468.1,0.8254]
[1730853242370,0.0616355,2468.6,2468.3,4.05132]
[1730853242523,0.0616355,2468.6,2468.5,4.05104]
[1730853242727,0.0616355,2468.6,2468.4,4.05106]
[1730853242927,0.0616355,2468.6,2468.2,8.21800346]
[1730853243230,0.0616355,2468.6,2468.5,4.05104]
[1730853243461,0.0616355,2468.6,2468.3,4.05121]
[1730853243660,0.0616355,2468.6,2467.9,4.05198]
[1730853243985,0.0616355,2468.6,2467.6,4.05239]
[1730853243986,4.83145,2468.5,2467.6,4.05239]
[1730853244282,4.05204,2467.9,2467.1,4.0533]
[1730853244571,0.7804,2467.8,2466.9,0.8254]
[1730853244742,4.05314,2467.3,2466.6,0.8254]
[1730853245141,4.05363,2467.0,2466.2,4.05467]
[1730853245323,4.05363,2467.0,2466.0,4.88053]
[1730853245529,0.483403,2466.9,2466.1,4.05498]
[1730853245753,0.483403,2466.9,2466.0,4.88044]
[1730853245957,4.05399,2466.8,2466.0,4.88044]
[1730853246143,0.483403,2466.9,2466.0,0.8254]
[1730853246601,4.537073,2466.9,2466.0,4.05501]
[1730853246885,4.83378,2467.1,2466.4,4.05443]
[1730853247035,4.05309,2467.3,2466.6,4.05414]
[1730853247238,4.05379,2466.9,2466.2,4.05469]
[1730853247904,4.05404,2466.7,2466.0,4.05509]
[1730853248069,4.05375,2466.9,2466.2,4.0548]
[1730853248264,0.81074,2466.9,2466.2,4.0548]
[1730853248579,4.05365,2467.0,2466.3,4.05464]
[1730853248891,4.05323,2467.2,2466.4,4.05437]
[1730853249381,8.1075,2466.9,2466.2,4.05472]
[1730853249694,4.05395,2466.8,2465.9,4.05531]
[1730853249840,4.05385,2466.8,2466.2,4.05467]
[1730853250033,4.79581462,2466.8,2466.2,4.05467]
[1730853250276,4.79581462,2466.8,2465.9,0.01]
[1730853250277,4.62e-06,2466.8,2465.9,0.01]
[1730853250501,0.7804,2467.4,2465.9,0.01]
[1730853250502,0.7804,2467.4,2467.3,4.05301]
[1730853250635,0.7804,2467.4,2466.6,4.05416]
[1730853250636,0.7804,2467.9,2467.6,4.0524]
[1730853250841,4.54055855,2468.4,2467.5,4.05268]
[1730853251078,4.54055855,2468.4,2467.7,4.05232]
[1730853251281,4.54055855,2468.4,2467.7,8.10464]
[1730853251575,4.54064855,2468.4,2467.5,4.05256]
[1730853251803,4.05153,2468.2,2467.5,4.05257]
[1730853251973,4.05153,2468.2,2467.6,39.0524]
[1730853252419,4.05153,2468.2,2467.7,4.05234]
[1730853252631,4.05134,2468.4,2467.7,8.10458]
[1730853252808,4.05154,2468.2,2467.5,4.05264]
[1730853253116,0.7804,2468.5,2467.7,4.05234]
[1730853253117,4.54062755,2468.4,2467.7,4.05234]
[1730853253275,4.05196,2468.0,2467.6,35.0]
[1730853254134,4.05158,2468.2,2467.6,35.0]
[1730853254293,4.05232,2467.8,2466.8,4.83091]
[1730853254494,4.05254,2467.6,2467.0,4.0535]
[1730853254922,4.05271,2467.5,2467.0,4.0535]
[1730853255083,4.0526,2467.6,2466.9,4.05364]
[1730853255284,8.10525,2467.6,2466.8,4.05377]
[1730853255501,5.0,2467.9,2466.5,0.7772]
[1730853255502,4.05213,2467.9,2467.2,4.05309]
[1730853255707,4.05245,2467.7,2467.0,4.05344]
[1730853255912,4.0521,2467.9,2466.9,35.0]
[1730853256215,5.0,2467.9,2466.7,4.16653346]